Cogmind - Beta 16.1 @@@ ROGUE MODE // 2026.04.21 @ 20:01:31 Player: Braundy Result: Self-destructed Performance ------------- Evolutions (2) 1000 Regions Visited (3) 600 Robots Destroyed (44) 220 Value Destroyed (883) 883 Prototype IDs (2) 40 Alien Tech Used (0) 0 Bonus (0) 0 TOTAL SCORE: 2743 Bonus ------- None Cogmind --------- Core Integrity 503/550 Matter 12/300 Energy 26/100 System Corruption 0% Temperature Cool (59) Movement Walking (120) Location -8/Materials Parts ------- > --- POWER (1) -------- (None) > --- PROPULSION (3) --- Carbon-fiber Leg Carbon-fiber Leg Carbon-fiber Leg > --- UTILITY (3) ------ Heat Sink Small Storage Unit Hacking Suite > --- WEAPON (4) ------- Ion Cannon Ion Cannon > --- INVENTORY (8) ---- Light Deuterium Engine Carbon-fiber Leg Hacking Suite System Shield High-powered Shotgun High-powered Shotgun Rocket Launcher Rocket Launcher Peak State ------------ > --- POWER ------------ Light Deuterium Engine > --- PROPULSION ------- Carbon-fiber Leg Carbon-fiber Leg Carbon-fiber Leg > --- UTILITY ---------- Heat Sink Small Storage Unit Hacking Suite > --- WEAPON ----------- Ion Cannon Ion Cannon Autogun High-powered Shotgun > --- INVENTORY -------- Light Deuterium Engine Carbon-fiber Leg Hacking Suite System Shield High-powered Shotgun High-powered Shotgun Rocket Launcher Rocket Launcher [Rating: 30] Favorites ----------- Power Light Nuclear Core Engine Improved Ion Engine Power Core Light Nuclear Core Propulsion Armored Wheel Treads Light Treads Leg Carbon-fiber Leg Wheel Armored Wheel Utility Hacking Suite Device Heat Sink Storage Small Storage Unit Hackware Hacking Suite Protection Light Armor Plating Weapon Autogun Energy Cannon Ion Cannon Ballistic Gun Autogun Launcher Mini Grenade Launcher Build | -11 -10 -9 -8 ------- Run | Yrd Mat Mat Mat Slots Evolved 4 | . . 2 2 Power . | . . . . Propulsion 1 | . . . 1 Utility 1 | . . . 1 Weapon 2 | . . 2 . Parts Attached 36 | 6 10 16 4 Power 5 | 1 2 1 1 Engine 4 | 1 1 1 1 Core 1 | . 1 . . Reactor . | . . . . Propulsion 12 | 2 5 4 1 Treads 2 | . 2 . . Leg 3 | . . 2 1 Wheel 7 | 2 3 2 . Hover . | . . . . Flight . | . . . . Utility 6 | 1 1 3 1 Device 2 | . 1 . 1 Storage 2 | 1 . 1 . Processor . | . . . . Hackware 1 | . . 1 . Protection 1 | . . 1 . Artifact . | . . . . Weapon 13 | 2 2 8 1 Energy Gun . | . . . . Energy Cannon 2 | . . 2 . Ballistic Gun 7 | 2 2 2 1 Ballistic Cannon . | . . . . Launcher 4 | . . 4 . Special Weapon . | . . . . Impact Weapon . | . . . . Slashing Weapon . | . . . . Piercing Weapon . | . . . . Special Melee Weapon . | . . . . Unidentified Prototypes . | . . . . Parts Lost 11 | . 5 4 2 Power 3 | . 1 1 1 Propulsion 3 | . 3 . . Utility 2 | . 1 1 . Weapon 3 | . . 2 1 Highest Loss Streak 3 | . 3 2 2 To Critical Strikes . | . . . . Average Backups 4 | 3 6 3 7 Power . | . . . . Propulsion . | 2 . . 1 Utility . | . . 1 2 Weapon 2 | . 4 1 3 Tool/Special . | . . . . Unused Backups 16 | 2 1 5 8 Power 2 | . 1 . 1 Propulsion 3 | 2 . . 1 Utility 5 | . . 2 3 Weapon 6 | . . 3 3 Tool/Special . | . . . . Average Slot Usage (%) 89 | . 82 91 93 Engine 5 | . 10 2 8 Core 5 | . 1 8 . Treads 3 | . . 5 . Leg 2 | . . 1 25 Wheel 14 | . 20 12 . Device 2 | . 6 . 8 Storage 6 | . 14 3 9 Hackware 7 | . . 10 9 Protection 4 | . . 7 . Energy Cannon 2 | . . 1 18 Ballistic Gun 30 | . 27 33 16 Launcher 2 | . . 4 . Peak Build Rating 30 | 6 11 24 30 Average Rating 15 | 4 9 17 26 On Entrance 10 | . 6 11 23 Avg Prop Armor Cover (%) . | . . . . Naked Turns . | . . . . Heaviest Build 31 | 13 19 30 31 Greatest Support 45 | 32 40 40 45 Greatest Overweight (x) 5 | . 1 5 . Average Overweight (x) . | . . . . Largest Inventory Capacity 8 | 8 8 8 8 Average Capacity 6 | 7 8 5 8 Most Carried 8 | 6 8 8 8 Average Carried 4 | 3 6 3 7 Final Capacity 8 | 8 8 8 8 Final Carried 8 | 6 7 7 8 Class Distribution -------------------- 42% | Mutant 39% | Tank 17% | Gunner Dominant Class ---------------- Mutant | -10/Materials Tank | -9/Materials Gunner | -8/Materials Resources | -11 -10 -9 -8 ----------- Run | Yrd Mat Mat Mat Matter Collected 1427 | 276 442 694 15 Remotely . | . . . . Salvage Created 1148 | 99 466 516 67 Parts 80 | 3 22 51 4 Haulers Intercepted . | . . . . Recyclers Shooed 2 | . 1 1 . Parts Field Recycled . | . . . . Retrieved Matter . | . . . . Parts Self-Destructed . | . . . . Prevented . | . . . . Parts Restored . | . . . . Kills | -11 -10 -9 -8 ------- Run | Yrd Mat Mat Mat Combat Hostiles Destroyed 27 | . 8 18 1 Guns 11 | . 8 3 . Cannons 1 | . . . 1 AOE 15 | . . 15 . Classes Destroyed 10 | 1 3 5 1 Worker 4 | . . 4 . Builder 1 | . . 1 . Recycler 3 | 1 1 1 . Operator 3 | . 1 1 1 Watcher 6 | . 1 5 . Swarmer 12 | . . 12 . Grunt 12 | . 8 4 . Brawler 1 | . . . 1 Duelist 1 | . . 1 . Sentry 1 | . . 1 . Best Kill Streak 12 | 1 4 12 1 Combat Bots Only 12 | . 3 12 1 Max Kills in Single Turn 4 | 1 1 4 1 Gunslinging . | . . . . Exploded 4 | . . 4 . Melee . | . . . . Uniques/NPCs Destroyed . | . . . . Combat | -11 -10 -9 -8 -------- Run | Yrd Mat Mat Mat Hostile Shots Fired 155 | . 69 50 36 Missed 48 | . 23 15 10 Hits 107 | . 46 35 26 Melee 1 | . . . 1 Projectile 106 | . 46 35 25 Critical Strikes 2 | . . 2 . Damage Taken 1557 | . 641 498 418 Core 240 | . 148 45 47 Absorbed by Shields . | . . . . Core Remaining (%) 76 | 100 40 88 . Volleys Fired 111 | 4 54 42 11 Largest 4 | 2 2 4 4 Hottest 166 | 40 46 106 166 Shots Fired 286 | 8 108 142 28 Gun 245 | 8 108 123 6 Cannon 22 | . . . 22 Launcher 19 | . . 19 . Special . | . . . . Kinetic 245 | 8 108 123 6 Thermal 22 | . . . 22 Explosive 19 | . . 19 . Electromagnetic . | . . . . Robot Hit Streak 20 | 3 20 8 6 Robot Miss Streak 7 | 1 3 7 4 Penetration Max . | . . . . Secondary Targets 1 | . 1 . . Max Gunslinging Chain 1 | . 1 . . Shots Hit Robots 137 | 5 65 54 13 Core Hits 63 | 2 21 37 3 Critical Kills 1 | . 1 . . Critical Parts Destroyed . | . . . . Critical Strikes 1 | . 1 . . Destroy 1 | . 1 . . Melee Attacks . | . . . . Impact . | . . . . Slashing . | . . . . Piercing . | . . . . Sneak Attacks . | . . . . Combat Hostiles . | . . . . Follow-up Attacks . | . . . . Damage Inflicted 3327 | 52 1037 1895 343 Guns 1840 | 52 1023 750 15 Cannons 328 | . . . 328 Explosions 1134 | . . 1134 . Melee . | . . . . Ramming 25 | . 14 11 . Kinetic 1840 | 52 1023 750 15 Thermal 328 | . . . 328 Explosive 1134 | . . 1134 . Electromagnetic . | . . . . Impact . | . . . . Slashing . | . . . . Piercing . | . . . . Highest Corruption 2 | . . 2 . Average Corruption 1 | . . 1 . Corruption Purged . | . . . . Corruption Blocked . | . . . . Effects 7 | . . 7 . Message Errors 1 | . . 1 . Matter Fused 1 | . . 1 . Heat Flow Errors 2 | . . 2 . Energy Discharges 3 | . . 3 . Overload Shots . | . . . . Overflow Damage 59 | . . 59 . Projectiles . | . . . . Explosions 59 | . . 59 . Melee . | . . . . Knockbacks 1 | . 1 . . Impact 1 | . 1 . . Kinetic . | . . . . Secondary . | . . . . Self-Inflicted Damage 127 | . 7 120 . Shots 3 | . . 3 . Rammed 2 | . 1 1 . Targets Rammed 3 | . 1 2 . Kicked . | . . . . Crushed 1 | . . 1 . Highest Temperature 262 | . 32 262 155 Average Temperature 51 | . 9 56 72 Received Heat Transfer 693 | . 348 120 225 Siege Activations . | . . . . Martial Activations . | . . . . Shielding Activations . | . . . . Robots Disrupted . | . . . . Combat Hostiles . | . . . . Robots Corrupted . | . . . . Combat Hostiles . | . . . . Parts Fried . | . . . . Impact Corruptions . | . . . . Robots Melted . | . . . . Combat Hostiles . | . . . . Parts Melted 1 | . . . 1 Heat Transferred 518 | . . . 518 Parts Sabotaged . | . . . . Parts Stolen . | . . . . Parts Stripped . | . . . . Power Chain Reactions . | . . . . Alert | -11 -10 -9 -8 ------- Run | Yrd Mat Mat Mat Maximum Alert Level 1 | . . 1 . Low Security (%) 81 | 100 100 70 100 Level 1 18 | . . 29 . Level 2 . | . . . . Level 3 . | . . . . Level 4 . | . . . . Level 5 . | . . . . High Security . | . . . . Max Security . | . . . . Peak Influence 391 | 5 81 391 147 Initial 141 | . . 16 141 Average 98 | . 32 132 133 Influence Increases 1040 | 5 266 717 52 Destroy 0b10 Robot/C 540 | . 160 360 20 Destroy 0b10 Robot/NC 85 | 5 15 60 5 Destroy Leader 122 | . 42 70 10 Successful Hack 24 | . 17 7 . Disable Machine 45 | . . 30 15 Destroy Structure 104 | . 2 100 2 Lose Combat Pursuer 120 | . 30 90 . Influence Decreases 907 | 5 227 421 254 Entered New Map 217 | . . 23 194 Time Decay 578 | 5 175 358 40 Lost Part 110 | . 50 40 20 Purge Threat 2 | . 2 . . Squads Dispatched 4 | . 3 1 . Investigation 2 | . 2 . . Extermination . | . . . . Reinforcement 2 | . 1 1 . Assault . | . . . . Garrison . | . . . . Intercept . | . . . . Searches Triggered . | . . . . Construction Impeded 1 | . . 1 . Haulers Reinforced . | . . . . Active Scanning Responses . | . . . . Cargo Convoy Interrupts . | . . . . Stealth | -11 -10 -9 -8 --------- Run | Yrd Mat Mat Mat Distress Signals 4 | . 2 2 . Communications Jammed . | . . . . Distress Signals . | . . . . Times Spotted 50 | . 13 30 7 Peak Tracking Total 8 | . 3 8 5 Tactical Retreats 8 | . 2 6 . Traps | -11 -10 -9 -8 ------- Run | Yrd Mat Mat Mat Traps Triggered 2 | . 1 1 . Indirectly . | . . . . Trap Hack Attempts . | . . . . Triggered . | . . . . Disarmed . | . . . . Reprogrammed . | . . . . Reused . | . . . . Traps Extracted . | . . . . Installed . | . . . . Triggered . | . . . . Machines | -11 -10 -9 -8 ---------- Run | Yrd Mat Mat Mat Machines Disabled 3 | . . 2 1 Max in Single Turn 1 | . . 1 1 Machines Repaired . | . . . . Machines Dismantled . | . . . . Machines Sabotaged . | . . . . Overloaded Fab Kills . | . . . . Hacking | -11 -10 -9 -8 --------- Run | Yrd Mat Mat Mat Machines Accessed 12 | . 6 6 . Terminals 8 | . 4 4 . Fabricators . | . . . . Repair Stations 2 | . 1 1 . Recycling Units 1 | . 1 . . Scanalyzers 1 | . . 1 . Garrison Access . | . . . . Total Hacks 24 | . 14 10 . Successful 12 | . 5 7 . Failed 12 | . 9 3 . Catastrophic . | . . . . Database Lockouts . | . . . . Manual 15 | . 9 6 . Terminals 17 | . 9 8 . Fabricators . | . . . . Repair Stations 4 | . 3 1 . Recycling Units 2 | . 2 . . Scanalyzers 1 | . . 1 . Garrison Access . | . . . . Terminal Hacks 4 | . 1 3 . Prototype ID Bank 1 | . . 1 . Unreport Threat 1 | . 1 . . Locate Traps 1 | . . 1 . Zone Layout 1 | . . 1 . Fabricator Hacks . | . . . . Repair Station Hacks 1 | . 1 . . Scan Component 1 | . 1 . . Recycling Unit Hacks 1 | . 1 . . Retrieve Components 1 | . 1 . . Scanalyzer . | . . . . Garrison Access Hacks . | . . . . Unauthorized Hacks 6 | . 2 4 . Terminals 3 | . 1 2 . Botnet 3 | . 1 2 . Fabricators . | . . . . Repair Stations 2 | . 1 1 . Mechanics 2 | . 1 1 . Recycling Units . | . . . . Scanalyzers 1 | . . 1 . Researchers 1 | . . 1 . Garrison Access . | . . . . Data Cores Recovered 2 | . . 1 1 Used . | . . . . Hacking Detections 10 | . 5 5 . Full Trace Events 2 | . 2 . . Feedback Events . | . . . . Feedback Blocked . | . . . . Robot Schematics Acquired . | . . . . Robots Built . | . . . . Authchips . | . . . . Time . | . . . . Total Robot Build Rating . | . . . . Part Schematics Acquired . | . . . . Parts Built . | . . . . Authchips . | . . . . Time . | . . . . Total Part Build Rating . | . . . . Part Studies Acquired . | . . . . Parts Repaired . | . . . . Time . | . . . . Parts Recycled . | . . . . Recycled Matter . | . . . . Retrieved Matter . | . . . . Retrieved Components 9 | . 9 . . Parts Scanalyzed . | . . . . Part Schematics Acquired . | . . . . Parts Damaged . | . . . . Bothacking | -11 -10 -9 -8 ------------ Run | Yrd Mat Mat Mat Used RIF Installer . | . . . . Robots Hacked . | . . . . Non-combat . | . . . . Combat . | . . . . Robot Hacks Applied . | . . . . Relay Couplers Released . | . . . . Fabnet Peak Effective % . | . . . . Robots Rewired . | . . . . Allies Hacked . | . . . . Hacks Repelled . | . . . . Allies | -11 -10 -9 -8 -------- Run | Yrd Mat Mat Mat Total Allies . | . . . . Largest Group . | . . . . Highest-Rated Group . | . . . . Highest-Rated Ally . | . . . . Total Orders . | . . . . Ally Attacks . | . . . . Total Damage . | . . . . Kills . | . . . . Allies Corrupted . | . . . . Allies Melted . | . . . . Intel | -11 -10 -9 -8 ------- Run | Yrd Mat Mat Mat Active Infowar (turns) . | . . . . Robot Analysis Total . | . . . . Derelict Logs Recovered . | . . . . Drone Launches . | . . . . Drone Recoveries . | . . . . Exploration | -11 -10 -9 -8 ------------- Run | Yrd Mat Mat Mat Turns Passed 1524 | 76 410 955 83 Spaces Moved 970 | 47 223 669 31 Core 36 | 1 . 35 . Treads 126 | . 8 118 . Legs 83 | . . 52 31 Wheels 725 | 46 215 464 . Hover . | . . . . Flight . | . . . . Fastest Speed 50 | 50 90 90 120 Average Speed 112 | 98 102 115 120 Slowest Speed 300 | 100 160 300 120 Overloaded Moves . | . . . . Propulsion Burnouts . | . . . . Robots Hopped . | . . . . Potential Cave-ins . | . . . . Cave-ins Triggered . | . . . . Exploration Rate (%) 20 | 4 31 38 9 Regions Visited 3 Branch Regions . Pre-discovered Areas . | . . . . Known Exits Taken . | . . . . Unknown Exits Taken 3 | 1 1 1 . Scrap Searched . | . . . . Spaces Dug . | . . . . Terrain Destroyed 137 | . . 135 2 Melee . | . . . . Projectile 2 | . . . 2 AOE 135 | . . 135 . Terrain Rammed . | . . . . Walls Destroyed . | . . . . Machines Disabled . | . . . . Actions | -11 -10 -9 -8 --------- Run | Yrd Mat Mat Mat Total 1219 | 67 320 777 55 Wait 32 | 1 17 14 . Move 967 | 46 222 668 31 Hop . | . . . . Pick Up 36 | 8 8 15 5 Fast Attach 19 | 6 5 7 1 Attach 13 | . 4 7 2 Detach 1 | . . 1 . Swap 8 | . 1 6 1 Drop 29 | 2 8 15 4 Fire 111 | 4 54 42 11 Melee . | . . . . Ram 2 | . 1 1 . Kick . | . . . . Crush 1 | . . 1 . Escape Stasis . | . . . . Rewire . | . . . . Trap . | . . . . Miscellaneous . | . . . . Route ------- -11/Scrapyard -10/Materials -9/Materials (discovered 2 exits: [*Mat x2]) -8/Materials History --------- Turn | Location | Event 28 | -11/Scrapyard | Discovered new exit (range 15) 77 | -11/Scrapyard | Entered Materials 314 | -10/Materials | Build established: Mutant 380 | -10/Materials | Core integrity fell below 50% 434 | -10/Materials | Lost 3 parts (1p1n1u) 480 | -10/Materials | Discovered new exit (range 4) 487 | -10/Materials | Entered another Materials area 487 | -9/Materials | Evolved 2 slots: Weapon x2 718 | -9/Materials | Discovered new exit (range 11) 842 | -9/Materials | Build established: Tank 1175 | -9/Materials | Discovered new exit (range 16) 1228 | -9/Materials | Destroyed 12 combat bots 1442 | -9/Materials | Entered another Materials area 1442 | -8/Materials | Evolved 2 slots: Propulsion x1, Utility x1 1525 | -8/Materials | Self-destructed Last Messages --------------- 01473_ B-36 Bruiser unfolds itself. 01473_ G-47 Trooper unfolds itself. 01476_ K-01 Serf collects debris. 01478_ Acquired Lgt. Deuterium Engine. 01479_ Dropped Imp. Ion Engine. 01481_ Acquired Hpw. Shotgun. 01483_ K-01 Serf collects debris. 01484_ Autogun destroyed. 01485_ Acquired Hpw. Shotgun. 01487_ K-01 Serf collects debris. 01505_ Lgt. Treads melted. 01505_ B-36 Bruiser destroyed. 01510_ Dropped Autogun. 01510_ R-06 Scavenger collects Tractor Beam. 01510_ Dropped Hpw. Shotgun. 01514_ Lgt. Deuterium Engine destroyed. 01515_ Electrolysis Chamber disabled. 01518_ R-06 Scavenger collects Hover Unit. 01521_ U-05 Engineer builds a Wall. 01525_ R-06 Scavenger collects Rnf. Ion Engine. Map ----- +----------------------------------------------------+ | ?????????????????????????????????????????????????? | | ?????????????????????????????????????????????????? | | ???????????????????# ??????????????????????????? | | ???????????????????# ??????????????????????????? | | ???????????????????# ??????????????????????????? | | ???????????????????# #?????????????????????????? | | ???????????????????# #?????????????????????????? | | ???????????????????# #?????????????????????????? | | ????????? ?????????# +?????????????????????????? | | ????????? ######### #?????????????????????????? | | ???????? #?????????????????????????? | | ???????? #?????????????????????????? | | ???????? #?????????????????????????? | | ???????# ###############???????????? | | ???????# ^ #???????????? | | ???????# ^ ^ #???????????? | | ???????# *! !! """ #???????????? | | ???????# * ! "G" #???????????? | | ???????# [ " " #???????????? | | ??????"%" "" ^ #???????????? | | ???????##+### " ####????????? | | ????????????+ """ ????????? | | ????????????# g r /w ???????? | | ????????????# g % ????????? | | ????????????# #"T"##= # #####+###??????????? | | ????????????#?####?# # @[[ #??????????????????? | | ???????????????????# #!!]]==#??????????????????? | | ?????????####??????# #!!]]==#??????????????????? | | ?????????# ????# ########??????????????????? | | ?????????# ??# ##????????????????????????? | | ?????????# # "#????????????????????????? | | ?????????# + ##????????????????????????? | | ?????????# # #?????????????????????????? | | ?????????# ??# #?????????????????????????? | | ?????????# ????# #?????????????????????????? | | ?????????# ??????#####?????????????????????????? | | ?????????##??????????????????????????????????????? | | ?????????????????????????????????????????????????? | | ?????????????????????????????????????????????????? | | ?????????????????????????????????????????????????? | | ?????????????????????????????????????????????????? | | ?????????????????????????????????????????????????? | | ?????????????????????????????????????????????????? | | | | | | | | | | | | | | | +----------------------------------------------------+ Best States ------------- Heat Dissipation 41 Energy Generation 14 Energy Capacity 265 Matter Stores 300 Matter Capacity 300 Sight Range 16 Terrain Scan Density 10 Armor Coverage 150 Evasion (%) 55 Recoil Reduction 2 Offensive Hacking 10 Item Schematics ----------------- None Robot Schematics ------------------ None Fabricated ------------ Nothing Repaired ---------- Nothing Studied --------- None Alien Tech Used ----------------- None Achievements -------------- True Hacker Challenges ------------ None Game ------ Seed ProjectileArcBroadsword Manual? 0 Play Time 00:25:13 Cumulative 12.9 hours Start 2026.04.21 @ 18:30:49 End 2026.04.21 @ 20:01:31 Sessions 1 Manual Loads 0 Difficulty Rogue Special Mode None Game No. 22 Rogue 21 Adventurer 1 Explorer 0 Win Type - Total 0 Types 0/0/0/0/0/0/0/0/0/0 Lore% 20 Gallery% 15 Achievement% 12 Wizard Run 0 Options --------- Layout 1 ASCII 0 Keyboard 0 Movement Mouse Keybinds 0 Fullscreen 1 Font 24/Smallcaps Map View 50x35 Zoom Use 0% Tactical HUD 1 Map Filters NONE Filters NONE Steam 1 RUN: 0006301a-0550-464f-9784-e0192a62bf82